[Event "Romanian Rapid Open 2022"]
[Site "Sebes"]
[Date "2022.12.02"]
[Round "7.19"]
[White "Nastase, Robert-Paul"]
[Black "Matasaru, Stephanie"]
[Result "1-0"]
[ECO "B98"]
[WhiteElo "2229"]
[BlackElo "1975"]
[Annotator "TA"]
[PlyCount "64"]
[EventDate "2022.12.02"]
[EventType "rapid"]
[EventCountry "ROU"]
[SourceTitle "playchess.com"]
[Source "ChessBase"]
[SourceQuality "1"]
[TimeControl "600+5"]

{[%evp 14,64,45,-10,29,31,37,-17,40,-86,-57,-43,-39,-66,-65,-59,-51,-103,-102,-96,-94,-228,-244,-277,-86,-85,-60,-232,-127,-131,-131,-156,-183,-171,-165,-208,-157,-149,-129,-144,-138,-144,-26,-29,-28,-68,-123,-164,-44,-41,89,-17,0]} 1. e4 {[%emt 0:10:10]} c5 {[%emt 0:10:10]} 2. Nf3 {[%emt 0:00:05]} d6 {[%emt 0:00:05]} 3. d4 {[%emt 0:00:05]} cxd4 4. Nxd4 {[%emt 0:00:05]} Nf6 {[%emt 0:00:10]} 5. Nc3 a6 6. Bg5 {[%emt 0:00:10]} e6 {[%emt 0:00:10]} 7. f4 {[%emt 0:00:05]} Be7 {[%emt 0:00:05]} 8. Qe2 {[%emt 0:00:05]} (8. Qf3 $1 $14) 8... O-O {[%emt 0:00:05] B98: Sicilian Najdorf: 6 Bg5 e6 7 f4 Be7, sidelines.} 9. O-O-O {[%emt 0:00:05]} Qc7 {[%emt 0:00:05] [#]} 10. f5 $146 {[%emt 0:00:05]} (10. Kb1 $14) ({Predecessor:} 10. Kb1 Nc6 11. g3 h6 12. h4 Bd7 13. Nb3 Rac8 14. g4 b5 15. a3 b4 16. axb4 Nxb4 {1-0 (61) Walter,G (2452)-Bastos,P (2460) ICCF email 2016}) 10... Nc6 {[%emt 0:00:05]} ({Black should try} 10... h6 $11 11. Be3 b5) 11. Qc4 {[%emt 0:00:05]} (11. fxe6 $1 $14 fxe6 12. Qc4) 11... d5 {[%emt 0:00:05]} 12. exd5 {[%emt 0:00:05]} exd5 {[%emt 0:00:05]} 13. Qd3 {[%emt 0:00:05]} Nxd4 {[%emt 0:00:05]} (13... Rd8 {simplifies} 14. Qf3 Nxd4 15. Rxd4 Qe5) 14. Qxd4 {[%emt 0:00:05]} Bxf5 {[%emt 0:00:05]} 15. g4 {[%emt 0:00:05]} (15. Bd3 $15 Be4 16. Bxf6 Bxf6 17. Nxd5 Bxd4 18. Nxc7 Bxg2 19. Nxa8 Bxh1 20. Rxh1 Rxa8 21. c3) 15... Be4 $17 {[%emt 0:00:05]} ({Resist} 15... Bxg4 16. Bxf6 Bxf6 17. Qxg4 $16) 16. Nxe4 {[%emt 0:00:05]} dxe4 $40 {[%emt 0:00:05][%mdl 128] Black wants a kill.} 17. Be2 {[%emt 0:00:05]} (17. Bxf6 $17 {was the only chance.} Qf4+ 18. Qd2 Qxf6 19. Bg2) 17... Rac8 $19 {[%emt 0:00:05][%csl Gc8][%cal Rc7c2]} 18. c3 {[%emt 0:00:05]} Bc5 $2 {[%emt 0:00:05] Against h4} (18... Qa5 $1 $19 {[%cal Ra5g5]} 19. h4 Qxa2) 19. Qd2 {[%emt 0:00:05]} e3 {[%emt 0:00:05]} 20. Bxe3 {[%emt 0:00:05]} (20. Qd3 $15) 20... Rfd8 {[%emt 0:00:05]} (20... Ne4 $19 21. Qd3 Rfe8 22. Bxc5 Qxc5) 21. Bd3 $17 Ne4 {[%emt 0:00:05] Inhibits Bg5.} 22. Bxe4 {[%emt 0:00:10]} Rxd2 {[%emt 0:00:05]} 23. Bxd2 b5 {[%emt 0:00:05]} 24. Bd5 {[%emt 0:00:10]} Qe5 {[%emt 0:00:05]} 25. Bb3 {[%emt 0:00:05]} b4 {[%emt 0:00:05]} 26. Kb1 {[%emt 0:00:05]} Qe4+ {[%emt 0:00:05]} 27. Ka1 {[%emt 0:00:05]} bxc3 {[%emt 0:00:05]} ({Better is} 27... Qxg4 $17 {Strongly threatening ...Be7.} 28. Rhf1 a5 29. Bxf7+ Kh8) 28. Bxc3 $11 Qxg4 {[%emt 0:00:05]} 29. Rhf1 {[%emt 0:00:10]} Rf8 {[%emt 0:00:05]} 30. Rd5 {[%emt 0:00:05] Against h6} Qg2 {[%emt 0:00:05]} ({Black should play} 30... Bb4 $1 $19 {[%cal Rb4c3] ...Bxc3 is the strong threat.} 31. Rdf5 Bxc3 32. Rxf7 Bxb2+ $1 {[%mdl 512]} 33. Kxb2 Rxf7 34. Rxf7 Qd4+ 35. Kc2 Qc5+ 36. Kd3 Kh8) 31. Rdf5 $15 {[%emt 0:00:05]} h6 {[%emt 0:00:05] [#]} (31... Kh8 $1 $15 {keeps the upper hand.}) 32. Bd5 {[%emt 0:00:05] Chess con chili. A strong pair of Bishops.} (32. Bc4 $1 $16) 32... Qg6 {[%emt 0:00:05][%mdl 32768] Whites escaped into a draw.   Weighted Error Value: White=0.46/Black=0.43. Loss on time!?} (32... Qxh2 $2 33. Rxf7 (33. Bxf7+ Kh8 $17) 33... Rxf7 34. Rxf7 Qg1+ 35. Rf1+ Kh7 36. Rxg1 $18) (32... Qe2 $5 {[%cal Rg8h8]}) 1-0

[Event "Romanian Rapid Open 2022"]
[Site "Sebes"]
[Date "2022.12.02"]
[Round "7.20"]
[White "Lup, Constantin-Ionel"]
[Black "Creanga, Robert-Ionut"]
[Result "0-1"]
[ECO "A20"]
[WhiteElo "1739"]
[BlackElo "2190"]
[Annotator "TA"]
[PlyCount "94"]
[EventDate "2022.12.02"]
[EventType "rapid"]
[EventCountry "ROU"]
[SourceTitle "playchess.com"]
[Source "ChessBase"]
[SourceQuality "1"]
[TimeControl "600+5"]

{[%evp 9,94,2,2,0,0,0,0,0,24,16,21,3,46,39,39,43,22,28,94,100,89,104,183,139,145,109,131,109,133,140,208,210,341,287,282,177,333,173,195,220,237,231,223,229,232,223,262,-312,-306,-410,-410,-677,-371,-367,-367,-398,-398,-398,-398,-398,-361,-440,-384,-342,-267,-431,-287,-527,-496,-618,-612,-1549,-1477,-1022,-972,-1336,-1195,-29985,-29986,-29986,-29987,-29989,-29990,-29990,-29991,-29991,-29982]} 1. c4 {[%emt 0:00:03]} e5 {[%emt 0:00:08]} 2. g3 {[%emt 0:00:02]} Nf6 {[%emt 0:00:11]} 3. Bg2 {[%emt 0:00:02]} c6 {[%emt 0:00:12]} 4. a3 {[%emt 0:00:23]} d5 {[%emt 0:00:30]} 5. cxd5 {[%emt 0:00:11]} cxd5 {[%emt 0:00:20]} 6. d4 {[%emt 0:00:18] A20: English Opening: 1...e5.} e4 {[%emt 0:00:54]} 7. Nc3 {[%emt 0:00:05]} Nc6 {[%emt 0:00:42]} 8. Bg5 {[%emt 0:00:16] The position is equal.} Be6 {[%emt 0:00:41]} 9. e3 {[%emt 0:00:11]} Be7 {[%emt 0:00:45]} 10. Nge2 {[%emt 0:00:12]} h6 {[%emt 0:00:32]} 11. Bxf6 {[%emt 0:00:06]} Bxf6 {[%emt 0:00:07]} 12. O-O {[%emt 0:00:12]} O-O {[%emt 0:00:45]} 13. Nf4 {[%emt 0:00:21] [#]} Qd7 $146 {[%emt 0:00:48]} (13... Bg5 $11) ({Predecessor:} 13... Ne7 14. f3 exf3 15. Qxf3 Bg5 16. Rfe1 Bxf4 17. Qxf4 Qd7 18. e4 dxe4 19. Qxe4 Rad8 {0-1 (40) Lup,C (1739)-Pop,A (2276) Arad 2019}) 14. f3 $16 {[%emt 0:00:26]} exf3 {[%emt 0:00:46]} 15. Qxf3 {[%emt 0:00:05]} Rfe8 {[%emt 0:01:17]} (15... Ne7 $16) 16. Nfxd5 {[%emt 0:01:56]} Bg5 {[%emt 0:00:11]} 17. Rae1 {[%emt 0:00:24]} Na5 {[%emt 0:01:01]} 18. Nf4 {[%emt 0:04:17] Pair of Knights!} Bc4 {[%emt 0:00:20]} 19. Rf2 {[%emt 0:00:11]} Nc6 {[%emt 0:00:07]} (19... Bxf4 $16 {was called for.} 20. Qxf4 Rad8) 20. Ne4 $18 {[%emt 0:01:17]} Be7 {[%emt 0:01:05]} (20... Bxf4 $142 21. Qxf4 Rad8) 21. Nd2 {[%emt 0:00:05]} Ba6 {[%emt 0:00:15]} 22. Nd5 {[%emt 0:00:18]} Bd6 $2 {[%emt 0:00:09]} (22... Rf8 {was necessary.} 23. Ne4 Rad8) 23. b4 {[%emt 0:00:26]} (23. Ne4 $142 Rxe4 24. Qxe4) 23... Nxd4 {[%emt 0:00:03] [#]} 24. Qd1 {[%emt 0:00:11]} Ne2+ {[%emt 0:00:08]} 25. Rfxe2 {[%emt 0:00:04]} Bxe2 {[%emt 0:00:01]} 26. Qxe2 {[%emt 0:00:02]} Be5 {[%emt 0:00:02]} 27. Qf3 {[%emt 0:00:05]} Rac8 {[%emt 0:00:04] [#]} 28. Nf4 $4 {[%emt 0:00:09][%mdl 8192]} Qxd2 $19 {[%emt 0:00:05] White is on the road to losing.} 29. Rf1 {[%emt 0:00:05]} Bxf4 {[%emt 0:00:04]} ({But not} 29... Rc1 $2 30. Qe4 $19) 30. exf4 {[%emt 0:00:03]} (30. Qxf4 $142 Qxe3+ 31. Qxe3 Rxe3 32. Bxb7) 30... Qe3+ {[%emt 0:00:06]} 31. Qxe3 {[%emt 0:00:07]} Rxe3 {[%emt 0:00:01]} 32. Bxb7 {[%emt 0:00:02][%mdl 4096] Endgame KRR-KRB} Rc7 {[%emt 0:00:01]} 33. Bd5 {[%emt 0:00:08]} Rxa3 {[%emt 0:00:02]} 34. Rb1 {[%emt 0:00:03]} g6 {[%emt 0:00:04]} 35. b5 {[%emt 0:00:04]} Rac3 {[%emt 0:00:03] ...Rc1+ is the strong threat.} 36. Bc6 {[%emt 0:00:07]} Kg7 {[%emt 0:00:05]} 37. Kf2 $2 {[%emt 0:00:04]} (37. Rb2) 37... Re7 {[%emt 0:00:01] White must now prevent ...Rc2+.} 38. Kg2 $2 {[%emt 0:00:06]} (38. Rb2 {is the only way for White.}) 38... Rc2+ {[%emt 0:00:02]} 39. Kh3 {[%emt 0:00:02]} Ree2 {[%emt 0:00:02]} 40. Rh1 {[%emt 0:00:07]} h5 {[%emt 0:00:01] Threatens to win with ...Rf2.} 41. Bf3 {[%emt 0:00:08]} Rf2 {[%emt 0:00:01]} 42. Bc6 {[%emt 0:00:01]} f6 {[%emt 0:00:04][%cal Bf7f6,Bf6g5][%mdl 32]} 43. Be4 {[%emt 0:00:02]} Rce2 {[%emt 0:00:01] Black mates.} 44. Bd3 {[%emt 0:00:02]} Rd2 {[%emt 0:00:01]} 45. Bc4 {[%emt 0:00:01]} g5 {[%emt 0:00:04]} 46. fxg5 {[%emt 0:00:06]} fxg5 {[%emt 0:00:02]} 47. Be6 {[%emt 0:00:11]} Kh6 {[%emt 0:00:05] Weighted Error Value: White=0.84/Black=0.38} 0-1

[Event "Romanian Rapid Open 2022"]
[Site "Sebes"]
[Date "2022.12.02"]
[Round "7.21"]
[White "Stefan, Romulus-Cristian"]
[Black "Bucur, Denisa-Andreea"]
[Result "1-0"]
[ECO "A47"]
[WhiteElo "2097"]
[BlackElo "1953"]
[Annotator "TA"]
[PlyCount "84"]
[EventDate "2022.12.02"]
[EventType "rapid"]
[EventCountry "ROU"]
[SourceTitle "playchess.com"]
[Source "ChessBase"]
[SourceQuality "1"]
[TimeControl "600+5"]

{[%evp 17,84,27,25,12,13,12,15,0,0,0,0,0,0,0,7,0,0,0,13,0,19,0,0,0,28,11,44,44,83,12,53,61,135,47,57,102,54,-78,-81,-92,100,-49,-46,-55,-47,-99,-97,-133,-121,-121,-122,-121,-124,-262,-108,-139,-99,-116,-106,-193,37,32,332,324,464,464,1060,1046,29998]} 1. d4 {[%emt 0:00:01]} Nf6 {[%emt 0:00:04]} 2. Nf3 {[%emt 0:00:03]} e6 {[%emt 0:00:03]} 3. Bg5 {[%emt 0:00:02]} c5 {[%emt 0:00:02]} 4. e3 {[%emt 0:00:02]} Be7 {[%emt 0:00:23]} 5. Nbd2 {[%emt 0:00:03]} Nc6 {[%emt 0:00:26]} 6. c3 {[%emt 0:00:02]} cxd4 {[%emt 0:00:45]} 7. exd4 {[%emt 0:00:02]} O-O {[%emt 0:00:11]} 8. Bd3 {[%emt 0:00:01]} b6 {[%emt 0:00:15] is the legacy move (8...Nd5).} 9. O-O {[%emt 0:00:17]} Bb7 {[%emt 0:00:05]} 10. a4 {[%emt 0:00:02] A47: 1 d4 Nf6 2 Nf3 b6: Torre, London and Colle Systems.} Nd5 {[%emt 0:01:33]} 11. Bxe7 {[%emt 0:00:05]} Ncxe7 {[%emt 0:00:07] [#]} 12. Nc4 $146 {[%emt 0:00:30] The position is equal.} ({Predecessor:} 12. Re1 Qc7 13. Bf1 a6 14. Qb3 Rab8 15. Rac1 Nf6 16. Qa3 Ng6 17. g3 d6 18. c4 {1-0 (62) Shimanov,A (2664)-Kononenko,D (2608) Pardubice 2013}) 12... Nf4 {[%emt 0:01:23]} 13. Nd6 {[%emt 0:00:05][%cal Bc4d6,Bd6e4,Be4g5,Bg5f3,Bf3e5][%mdl 32]} Bxf3 {[%emt 0:00:54]} 14. Qxf3 {[%emt 0:00:08]} Nxd3 {[%emt 0:00:03]} 15. Qxd3 {[%emt 0:00:02]} Qc7 {[%emt 0:00:03]} 16. Ne4 {[%emt 0:01:02]} d5 {[%emt 0:01:11]} 17. Ng5 $40 {[%emt 0:00:11][%csl Gg5][%cal Rd3h7][%mdl 128] White is up to no good.} Ng6 {[%emt 0:00:05]} 18. g3 {[%emt 0:00:06]} Qe7 {[%emt 0:00:38]} 19. h4 {[%emt 0:00:13]} (19. f4 $5) 19... h6 {[%emt 0:00:02]} 20. Nf3 {[%emt 0:00:03]} Qf6 {[%emt 0:00:08]} 21. Rfe1 {[%emt 0:00:09]} Ne7 {[%emt 0:00:16]} 22. Ne5 {[%emt 0:00:08] And now Nd7 would win.} Rfd8 {[%emt 0:00:43] Against Nd7} 23. Re3 {[%emt 0:00:23] White is more active.} (23. a5 $16) 23... Qf5 {[%emt 0:00:18]} (23... Nf5 $5 {[%cal Rf5e3]}) 24. Qe2 {[%emt 0:01:43]} Qh3 {[%emt 0:01:23]} (24... Qh7 $14) 25. Re1 {[%emt 0:00:12]} (25. Rf3 $1 $16 {[%cal Rf3f7]}) 25... Nf5 $1 $14 {[%emt 0:00:24]} 26. Rf3 {[%emt 0:00:31]} Nd6 {[%emt 0:00:02]} 27. g4 {[%emt 0:01:50]} (27. Rf4 $14 {stays ahead.}) 27... Qxh4 $17 {[%emt 0:00:03] aiming for ...f6.} 28. Kg2 {[%emt 0:00:03]} Qg5 $2 {[%emt 0:00:32] [#]} (28... Re8 $17) 29. Rh1 {[%emt 0:00:24]} (29. Rxf7 $1 $16 Re8 30. Rc7 (30. Rd7 Red8 $16)) 29... Rac8 $1 $15 {[%emt 0:00:15]} (29... f6 $2 30. Rh5 fxe5 31. Rxg5 $18) 30. Rh5 $1 {[%emt 0:00:06]} Qe7 {[%emt 0:00:06]} 31. Rfh3 {[%emt 0:00:40]} (31. Qd3 $15) 31... f6 $17 {[%emt 0:00:04]} 32. Ng6 {[%emt 0:00:12]} Qf7 {[%emt 0:00:02]} 33. Nf4 {[%emt 0:00:04]} Re8 {[%emt 0:00:03]} 34. Nd3 {[%emt 0:00:06]} Ne4 {[%emt 0:00:02]} 35. f3 {[%emt 0:00:19] [#]} (35. Re3 $17) 35... Nd6 {[%emt 0:00:05]} (35... Ng5 $1 $19 {is more deadly.} 36. f4 Nxh3 37. Rxh3 a5) 36. Rh1 {[%emt 0:00:14]} Nc4 {[%emt 0:00:15][%cal Oe6e5]} 37. f4 {[%emt 0:00:29][%cal Bf3f4,Bf4g5,Bg5h6][%mdl 32]} Nd6 {[%emt 0:00:03]} (37... Qg6 {is interesting.} 38. R1h3 Qe4+ 39. Kf2 Kf7) 38. g5 {[%emt 0:00:01]} (38. Qd1 $17) 38... fxg5 $2 {[%emt 0:00:04]} (38... Qg6 $19 {...Nf7 is the strong threat.} 39. Re1 Ne4) 39. fxg5 $14 {[%emt 0:00:04]} Qg6 $2 {[%emt 0:00:07][%mdl 8192]} ({Black should try} 39... Ne4 $14) 40. Ne5 $18 {[%emt 0:00:10]} Qe4+ {[%emt 0:00:17]} (40... Qh7 {might work better.} 41. g6 Qh8) 41. Qxe4 {[%emt 0:00:03]} Nxe4 {[%emt 0:00:00]} (41... dxe4 $142 42. gxh6 gxh6 43. Rxh6 Nf5 44. Rg6+ Ng7) 42. gxh6 {[%emt 0:00:03] Intending h7+ and mate.} Rf8 {[%emt 0:00:10] Weighted Error Value: White=0.33/Black=0.47} 1-0

[Event "Romanian Rapid Open 2022"]
[Site "Sebes"]
[Date "2022.12.02"]
[Round "7.22"]
[White "Ciolacu, Alessia-Mihaela"]
[Black "Danila, Tudor-Gabriel"]
[Result "1-0"]
[ECO "E51"]
[WhiteElo "2097"]
[BlackElo "1939"]
[Annotator "TA"]
[PlyCount "77"]
[EventDate "2022.12.02"]
[EventType "rapid"]
[EventCountry "ROU"]
[SourceTitle "playchess.com"]
[Source "ChessBase"]
[SourceQuality "1"]
[TimeControl "600+5"]

{[%evp 13,77,0,-1,0,19,19,20,0,0,0,1,0,11,8,10,-4,161,180,172,171,164,171,176,157,190,120,165,156,149,166,165,154,163,150,188,141,177,162,168,169,186,125,137,91,91,91,93,93,93,93,87,89,81,54,389,361,327,321,1315,1318,1223,1224,1140,1136,1141,1091]} 1. d4 {[%emt 0:00:03]} Nf6 {[%emt 0:00:01]} 2. c4 {[%emt 0:00:01]} e6 {[%emt 0:00:01]} 3. Nc3 {[%emt 0:00:04]} Bb4 {[%emt 0:00:01]} 4. e3 {[%emt 0:00:54]} O-O {[%emt 0:00:11]} 5. Bd2 {[%emt 0:00:04]} d5 {[%emt 0:00:10]} 6. Nf3 {[%emt 0:00:12]} b6 {[%emt 0:00:07]} 7. cxd5 {[%emt 0:00:02]} exd5 {[%emt 0:00:01]} 8. Bd3 {[%emt 0:00:12] E51: Nimzo-Indian: Rubinstein: 4...0-0 5 Nf3 d5.} Ba6 {[%emt 0:00:06]} 9. Bxa6 {[%emt 0:00:39]} Nxa6 {[%emt 0:00:01]} 10. Qa4 {[%emt 0:00:16] The position is equal.} Qc8 {[%emt 0:00:01]} 11. Rc1 {[%emt 0:00:08]} Qb7 {[%emt 0:00:26]} 12. O-O {[%emt 0:00:13] [#]} Rfd8 $146 {[%emt 0:00:54]} ({Predecessor:} 12... Bd6 13. Rfd1 c6 14. a3 Rfc8 15. h3 Nc7 16. Ne2 Ne6 17. Bb4 c5 18. dxc5 bxc5 {1-0 (43) Le,Q (2728)-Niemann,H (2687) Miami 2022}) 13. Ne5 {[%emt 0:00:21] And now Nc6 would win.} (13. a3 {simplifies} Bxc3 14. Bxc3 Ne4 15. b4) 13... c5 {[%emt 0:00:31]} 14. dxc5 {[%emt 0:00:22][%cal Bd4c5,Bc5c6][%mdl 32]} Bxc3 $2 {[%emt 0:00:29]} (14... Bxc5 $11 {and Black stays safe.} 15. Nb5 Ne4) 15. c6 $1 $18 {[%emt 0:00:08]} (15. Bxc3 $6 Nxc5 16. Qh4 Nfe4 $11) 15... Qc7 {[%emt 0:00:04]} 16. Bxc3 {[%emt 0:00:12]} Nc5 {[%emt 0:00:01]} 17. Qc2 {[%emt 0:00:13]} a5 {[%emt 0:00:18]} 18. Bd4 {[%emt 0:00:21]} Nfe4 {[%emt 0:01:02]} 19. b3 {[%emt 0:01:13]} (19. f3 $18 Ng5 20. Bxc5 bxc5 21. Qxc5 $1) 19... f6 {[%emt 0:00:49] [#]} 20. Nd3 {[%emt 0:00:03][%cal Rd4c5]} Qxc6 {[%emt 0:00:44]} 21. f3 {[%emt 0:00:15]} Nd6 {[%emt 0:00:05]} 22. Nxc5 {[%emt 0:00:08]} bxc5 {[%emt 0:00:27]} 23. Qxc5 {[%emt 0:00:02]} Qb7 {[%emt 0:00:01]} 24. Qc7 {[%emt 0:00:36]} (24. Qb6 $18) 24... Rd7 {[%emt 0:00:47]} 25. Qxb7 {[%emt 0:00:27]} Rxb7 {[%emt 0:00:01]} 26. Rc5 {[%emt 0:00:05]} Rb5 {[%emt 0:00:46]} 27. Rfc1 {[%emt 0:00:02]} (27. Rc6 $18 Nf5 28. Bc5) 27... a4 $16 {[%emt 0:00:12]} 28. Rc6 {[%emt 0:00:31]} (28. Rxb5 $142 Nxb5 29. b4) 28... Nf5 {[%emt 0:00:13]} 29. Rc8+ {[%emt 0:00:02]} Rxc8 {[%emt 0:00:10]} 30. Rxc8+ {[%emt 0:00:02][%mdl 4096] Endgame KRB-KRN} Kf7 {[%emt 0:00:01]} 31. bxa4 {[%emt 0:00:15]} Rb4 {[%emt 0:00:01]} 32. Rc7+ {[%emt 0:01:24]} Kg6 {[%emt 0:00:02]} 33. Bc5 {[%emt 0:01:25]} Rxa4 {[%emt 0:00:01][%mdl 8192]} ({Black should try} 33... Rb1+ $14 34. Kf2 Rb2+ 35. Kg1 Rc2) 34. g4 $18 {[%emt 0:00:10][%cal Bg2g4,Bg4g5][%mdl 32]} Nh4 {[%emt 0:01:59]} 35. Bf8 {[%emt 0:00:03]} f5 $2 {[%emt 0:00:07]} (35... Nxf3+ $2 36. Kf2 f5 37. Rxg7+ Kf6 38. Kxf3 $18) (35... Kg5 36. Kf2 (36. Bxg7 Rxa2 37. h3 Nxf3+ 38. Kf1 Kh4 $17) 36... Ng6 37. Rxg7 f5 38. Be7+ Kh6) 36. Rxg7+ {[%emt 0:00:05] White is clearly winning.} (36. Bxg7 Nxf3+ 37. Kf2 fxg4 $17) 36... Kf6 {[%emt 0:00:01]} 37. g5+ {[%emt 0:00:03]} ({Weaker is} 37. Rxh7 Nxf3+ 38. Kg2 Nd2 $14) 37... Ke6 {[%emt 0:00:01]} 38. Re7+ {[%emt 0:00:03]} ({Not} 38. Rxh7 Nxf3+ 39. Kf1 Nxg5 $14) 38... Kd6 {[%emt 0:00:16]} 39. Ra7+ {[%emt 0:00:02] Weighted Error Value: White=0.11 (very precise) /Black=0.35} 1-0

[Event "Romanian Rapid Open 2022"]
[Site "Sebes"]
[Date "2022.12.02"]
[Round "7.23"]
[White "Dragomirescu, Calin"]
[Black "Filip, Andrei"]
[Result "1-0"]
[ECO "E01"]
[WhiteElo "1971"]
[BlackElo "2331"]
[Annotator "TA"]
[PlyCount "91"]
[EventDate "2022.12.02"]
[EventType "rapid"]
[EventCountry "ROU"]
[SourceTitle "playchess.com"]
[Source "ChessBase"]
[SourceQuality "1"]
[TimeControl "600+5"]

{[%evp 18,91,58,50,49,27,31,30,43,22,40,13,7,0,13,0,241,239,328,259,337,334,431,418,531,540,676,666,679,381,379,311,280,240,263,259,264,247,257,266,260,252,313,302,291,246,221,225,305,229,239,223,201,120,200,178,178,191,291,276,277,286,302,292,299,183,539,546,525,518,675,565,29996,5783,5776,800]} 1. d4 {[%emt 0:00:03]} Nf6 {[%emt 0:00:01]} 2. Nf3 {[%emt 0:00:01][%cal Bg1f3,Bf3d4,Bd4b3][%mdl 32]} e6 {[%emt 0:00:00]} 3. g3 {[%emt 0:00:02]} c5 {[%emt 0:00:01]} 4. Bg2 {[%emt 0:00:06]} cxd4 {[%emt 0:00:05]} 5. O-O {[%emt 0:00:09]} d5 {[%emt 0:00:02]} 6. Nxd4 {[%emt 0:00:02]} Nc6 {[%emt 0:00:11]} 7. c4 {[%emt 0:00:14]} Bc5 {[%emt 0:00:35]} 8. Nb3 {[%emt 0:00:17]} Be7 {[%emt 0:00:04]} 9. cxd5 {[%emt 0:00:12]} exd5 {[%emt 0:00:13]} 10. Nc3 {[%emt 0:00:18][%cal Rc3d5,Bb1c3,Bc3b5,Bb5c7,Bc7e6][%mdl 32]} Be6 {[%emt 0:00:03] E01: Catalan: Early deviations.} 11. Nd4 {[%emt 0:00:17]} O-O {[%emt 0:00:11]} 12. Nxe6 {[%emt 0:00:02]} fxe6 {[%emt 0:00:01] White has an edge.} 13. Bh3 {[%emt 0:00:13]} Qd6 {[%emt 0:00:22] [#]} 14. e4 $146 {[%emt 0:00:41]} ({Predecessor:} 14. Nb5 Qd7 15. Bf4 Bd8 16. Nd4 Re8 17. Rc1 Bb6 18. Be3 Rac8 19. Qd3 Qf7 20. Nf3 Qh5 21. Bg2 Ng4 22. Bf4 g5 {0-1 (22) Weber,S (2315)-Armas,J (2410) Berlin West 1988}) 14... d4 {[%emt 0:00:39]} (14... Nxe4 15. Nxe4 dxe4 16. Qxd6 Bxd6 17. Bxe6+ Kh8 18. Be3 $16) 15. Nb5 {[%emt 0:00:40]} Qe5 {[%emt 0:00:23]} 16. Qb3 {[%emt 0:00:32]} Qxe4 {[%emt 0:00:47] [#] Black is now going downhill.} (16... Nxe4 17. Qxe6+ Qxe6 18. Bxe6+ Kh8 19. Bd5 $16) (16... Kh8 $11) 17. Nc7 $1 $18 {[%emt 0:01:04]} Rab8 {[%emt 0:03:07]} 18. Nxe6 {[%emt 0:00:49]} Na5 {[%emt 0:00:22]} 19. Qa4 {[%emt 0:00:14]} (19. Nxf8+ $2 {loses.} Nxb3 20. axb3 Rxf8 $19) 19... Qd5 {[%emt 0:00:11]} 20. Nxf8 {[%emt 0:00:14]} ({Not} 20. Nxd4 b5 $18) ({Weaker is} 20. Qxd4 Qxd4 21. Nxd4 Rfd8 $18) 20... Rxf8 {[%emt 0:00:01]} 21. Re1 {[%emt 0:01:41]} Qd8 {[%emt 0:00:57]} 22. Bd2 {[%emt 0:00:34]} Nc6 {[%emt 0:00:06]} 23. Qc4+ {[%emt 0:00:09]} Kh8 {[%emt 0:00:04]} 24. Qe6 {[%emt 0:00:13]} Bc5 {[%emt 0:00:12]} 25. Bg5 {[%emt 0:00:23]} h6 {[%emt 0:01:37]} 26. Bxf6 {[%emt 0:00:06]} Rxf6 {[%emt 0:00:01]} 27. Qe8+ {[%emt 0:00:04]} Qxe8 {[%emt 0:00:01]} 28. Rxe8+ {[%emt 0:00:02]} Kh7 {[%emt 0:00:00]} 29. Bg2 {[%emt 0:00:35]} d3 {[%emt 0:00:19]} 30. Be4+ {[%emt 0:00:08]} g6 {[%emt 0:00:00]} 31. Bxd3 {[%emt 0:00:17]} Rxf2 {[%emt 0:00:05] [#] aiming for ...Rf8+.} 32. Kh1 {[%emt 0:00:09]} Rxb2 {[%emt 0:00:14]} 33. Rf1 {[%emt 0:00:13][%cal Rf1f7]} Kg7 {[%emt 0:00:08] Inhibits Rf7+.} 34. Re6 {[%emt 0:00:18]} Ne7 {[%emt 0:00:02]} 35. Re2 {[%emt 0:00:15] Inhibits Rd2.} ({White should try} 35. Rfe1 $18) 35... Rb6 {[%emt 0:00:12]} (35... Rxe2 $16 36. Bxe2 Nf5) 36. Bc4 {[%emt 0:00:06]} Nf5 {[%emt 0:00:03]} 37. g4 {[%emt 0:00:19] Prevents h5.} Ne3 {[%emt 0:00:36]} (37... Rb4 $142 38. gxf5 Rxc4 39. fxg6 Kxg6 40. Rg2+ Kh5) 38. Rf7+ {[%emt 0:00:03]} Kh8 {[%emt 0:00:20] Hoping for ...Rb1+.} 39. Bb3 {[%emt 0:00:24]} Rd6 {[%emt 0:00:11]} 40. Rxb7 {[%emt 0:00:31] Rf2 is the strong threat.} Rf6 {[%emt 0:00:02][%cal Rf6f1] Inhibits Rf2.} 41. Rf7 {[%emt 0:00:14]} Rd6 {[%emt 0:00:16]} (41... Rxf7 42. Bxf7 Kg7) 42. Ref2 {[%emt 0:00:09]} Rd8 {[%emt 0:00:06] Prevents Rf8+.} 43. Rb7 {[%emt 0:00:16] Intending Rff7 and mate.} Nd5 {[%emt 0:00:38]} 44. Rff7 {[%emt 0:00:07] White wants to mate with Bxd5.} g5 {[%emt 0:00:04]} 45. Rh7+ {[%emt 0:00:04]} (45. Bxd5 $142 Be7 46. Rfxe7 Rd7 47. Rb8+ Rd8 48. Rxd8#) 45... Kg8 {[%emt 0:00:00]} 46. Rhd7 {[%emt 0:00:04] Weighted Error Value: White=0.34/Black=0.78} (46. Rxh6 $142 Ba3 47. Rhh7) 1-0